[Event "Live Chess"]
[Site "Chess.com"]
[Date "2023.05.20"]
[Round "-"]
[White "atunnacl"]
[Black "LaupMiths"]
[Result "0-1"]
[WhiteElo "1390"]
[BlackElo "1824"]
[TimeControl "300"]
[EndTime "12:20:21 PDT"]
[Termination "LaupMiths won on time"]

1. e4 {[%clk 0:04:52.6]} 1... c5 {[%clk 0:04:58.9]} 2. Nf3 {[%clk 0:04:49.5]}
2... e6 {[%clk 0:04:57.7]} 3. g3 {[%clk 0:04:44.8]} 3... Nc6 {[%clk 0:04:54.8]}
4. Bg2 {[%clk 0:04:43.5]} 4... g6 {[%clk 0:04:54]} 5. O-O {[%clk 0:04:41.6]}
5... Bg7 {[%clk 0:04:53.9]} 6. c3 {[%clk 0:04:39.2]} 6... Nge7 {[%clk 0:04:53]}
7. Re1 {[%clk 0:04:31.8]} 7... d6 {[%clk 0:04:50.1]} 8. Qe2 {[%clk 0:04:22.2]}
8... O-O {[%clk 0:04:47.5]} 9. a4 {[%clk 0:04:18.7]} 9... b6 {[%clk 0:04:40.2]}
10. d3 {[%clk 0:04:13]} 10... Na5 {[%clk 0:04:37.8]} 11. Qc2 {[%clk 0:04:08.7]}
11... Bb7 {[%clk 0:04:36.7]} 12. Na3 {[%clk 0:04:01.7]} 12... Rc8 {[%clk
0:04:35.1]} 13. Nb5 {[%clk 0:03:55.3]} 13... a6 {[%clk 0:04:28.9]} 14. Na3
{[%clk 0:03:40.7]} 14... Qc7 {[%clk 0:04:23.7]} 15. Nd2 {[%clk 0:03:37.2]} 15...
d5 {[%clk 0:04:16.3]} 16. exd5 {[%clk 0:03:22.2]} 16... Bxd5 {[%clk 0:04:12.1]}
17. Ndc4 {[%clk 0:02:50.4]} 17... Bxg2 {[%clk 0:04:07.1]} 18. Kxg2 {[%clk
0:02:48.5]} 18... Nac6 {[%clk 0:03:35.2]} 19. Bf4 {[%clk 0:02:27.8]} 19... Qb7
{[%clk 0:03:32.4]} 20. Nd6 {[%clk 0:02:22.5]} 20... Qa8 {[%clk 0:03:30.3]} 21.
Nxc8 {[%clk 0:02:20.5]} 21... Nd4+ {[%clk 0:03:28.3]} 22. Kg1 {[%clk 0:02:17]}
22... Nxc2 {[%clk 0:03:26.3]} 23. Nxe7+ {[%clk 0:02:14.9]} 23... Kh8 {[%clk
0:03:24.3]} 24. Nxc2 {[%clk 0:02:13]} 24... Qb7 {[%clk 0:03:13.1]} 25. Nxg6+
{[%clk 0:01:24.2]} 25... hxg6 {[%clk 0:03:09.9]} 26. Be5 {[%clk 0:01:16.3]}
26... Rd8 {[%clk 0:03:05.7]} 27. Bxg7+ {[%clk 0:01:07.4]} 27... Kxg7 {[%clk
0:03:03.3]} 28. d4 {[%clk 0:01:05.2]} 28... c4 {[%clk 0:02:57.6]} 29. Re5 {[%clk
0:00:55]} 29... Rd5 {[%clk 0:02:47.9]} 30. Rae1 {[%clk 0:00:45.4]} 30... Rxe5
{[%clk 0:02:47.8]} 31. Rxe5 {[%clk 0:00:43.7]} 31... Qc6 {[%clk 0:02:35.4]} 32.
a5 {[%clk 0:00:37]} 32... b5 {[%clk 0:02:32.3]} 33. Ne1 {[%clk 0:00:26.1]} 33...
Qc7 {[%clk 0:02:29.5]} 34. h4 {[%clk 0:00:20.4]} 34... Qxa5 {[%clk 0:02:28.3]}
35. h5 {[%clk 0:00:16.1]} 35... gxh5 {[%clk 0:02:26.4]} 36. Rxh5 {[%clk
0:00:13.3]} 36... Qa1 {[%clk 0:02:26.3]} 37. Kf1 {[%clk 0:00:11.2]} 37... Qxb2
{[%clk 0:02:24.2]} 38. Rg5+ {[%clk 0:00:07.6]} 38... Kf8 {[%clk 0:02:23.6]} 39.
Rh5 {[%clk 0:00:05.7]} 39... Qxc3 {[%clk 0:02:21.5]} 40. Rh8+ {[%clk 0:00:04]}
40... Ke7 {[%clk 0:02:18.6]} 0-1

[Event "Live Chess"]
[Site "Chess.com"]
[Date "2023.05.20"]
[Round "-"]
[White "Ninifu"]
[Black "zdanevych"]
[Result "1-0"]
[WhiteElo "2005"]
[BlackElo "1498"]
[TimeControl "300"]
[EndTime "12:20:23 PDT"]
[Termination "Ninifu won by resignation"]

1. d4 {[%clk 0:04:57.1]} 1... d5 {[%clk 0:04:59.3]} 2. e4 {[%clk 0:04:55.5]}
2... dxe4 {[%clk 0:04:58]} 3. Nc3 {[%clk 0:04:54.2]} 3... Nf6 {[%clk 0:04:55.9]}
4. f3 {[%clk 0:04:53.1]} 4... exf3 {[%clk 0:04:54.8]} 5. Nxf3 {[%clk 0:04:52.5]}
5... Nc6 {[%clk 0:04:53.5]} 6. d5 {[%clk 0:04:44.8]} 6... Nb8 {[%clk 0:04:50.2]}
7. Be2 {[%clk 0:04:38]} 7... c6 {[%clk 0:04:49.1]} 8. Bc4 {[%clk 0:04:29.3]}
8... cxd5 {[%clk 0:04:47.9]} 9. Nxd5 {[%clk 0:04:27.6]} 9... Nxd5 {[%clk
0:04:42.7]} 10. Bxd5 {[%clk 0:04:21.7]} 10... e6 {[%clk 0:04:39.1]} 11. Bc4
{[%clk 0:04:01.8]} 11... Qxd1+ {[%clk 0:04:34.8]} 12. Kxd1 {[%clk 0:04:00.6]}
12... Bd6 {[%clk 0:04:18.4]} 13. Be3 {[%clk 0:03:56.1]} 13... Nc6 {[%clk
0:04:14.8]} 14. Ke2 {[%clk 0:03:48.1]} 14... Ke7 {[%clk 0:04:05.8]} 15. Rad1
{[%clk 0:03:45.6]} 15... a6 {[%clk 0:04:03.2]} 16. Rhe1 {[%clk 0:03:37.1]} 16...
b5 {[%clk 0:04:02.1]} 17. Bd3 {[%clk 0:03:32.5]} 17... Bb7 {[%clk 0:04:00]} 18.
Kf2 {[%clk 0:03:30.8]} 18... f6 {[%clk 0:03:54.1]} 19. c4 {[%clk 0:03:25.9]}
19... Ne5 {[%clk 0:03:48.6]} 20. Nxe5 {[%clk 0:03:02.8]} 20... Bxe5 {[%clk
0:03:46.2]} 21. b3 {[%clk 0:02:53.7]} 21... bxc4 {[%clk 0:03:31.5]} 22. Bxc4
{[%clk 0:02:50.2]} 22... Rhd8 {[%clk 0:03:24.9]} 23. g3 {[%clk 0:02:33.2]} 23...
Rxd1 {[%clk 0:03:19.8]} 24. Rxd1 {[%clk 0:02:31.9]} 24... Rd8 {[%clk 0:03:19.7]}
25. Rxd8 {[%clk 0:02:18.1]} 25... Kxd8 {[%clk 0:03:19.6]} 26. Bxe6 {[%clk
0:02:16.9]} 26... Ke7 {[%clk 0:03:05.3]} 27. Bc4 {[%clk 0:02:14.3]} 27... Kd6
{[%clk 0:02:59.8]} 28. Ke2 {[%clk 0:02:08]} 28... g5 {[%clk 0:02:38.3]} 29. Kd3
{[%clk 0:02:01.4]} 29... h6 {[%clk 0:02:33.9]} 30. b4 {[%clk 0:01:50.7]} 30...
h5 {[%clk 0:02:30.9]} 31. a4 {[%clk 0:01:39.1]} 31... h4 {[%clk 0:02:27.9]} 32.
Bf2 {[%clk 0:01:28.2]} 32... hxg3 {[%clk 0:02:24.5]} 33. Bxg3 {[%clk 0:01:14.9]}
33... Bxg3 {[%clk 0:02:20.8]} 34. hxg3 {[%clk 0:01:13.7]} 34... f5 {[%clk
0:02:19.1]} 35. Kd4 {[%clk 0:01:09.5]} 35... g4 {[%clk 0:02:07.4]} 36. Bd3
{[%clk 0:01:04.1]} 36... Ke6 {[%clk 0:02:03.8]} 37. Kc5 {[%clk 0:01:01.8]} 37...
Ke5 {[%clk 0:01:57.5]} 38. Kb6 {[%clk 0:01:00.2]} 38... Bh1 {[%clk 0:01:53.6]}
39. Bxa6 {[%clk 0:00:58.1]} 39... f4 {[%clk 0:01:52.6]} 40. gxf4+ {[%clk
0:00:53.1]} 40... Kxf4 {[%clk 0:01:50.9]} 41. Bf1 {[%clk 0:00:46.8]} 41... Kf3
{[%clk 0:01:47.6]} 42. a5 {[%clk 0:00:37.7]} 42... Bg2 {[%clk 0:01:46.4]} 43.
Bxg2+ {[%clk 0:00:34]} 43... Kxg2 {[%clk 0:01:45.2]} 44. a6 {[%clk 0:00:33.5]}
44... Kf2 {[%clk 0:01:44.9]} 45. a7 {[%clk 0:00:33]} 45... g3 {[%clk 0:01:44.8]}
46. a8=Q {[%clk 0:00:31.7]} 46... g2 {[%clk 0:01:44.7]} 47. Qxg2+ {[%clk
0:00:30.8]} 47... Kxg2 {[%clk 0:01:43.6]} 48. Kc5 {[%clk 0:00:29.9]} 1-0

[Event "Live Chess"]
[Site "Chess.com"]
[Date "2023.05.20"]
[Round "-"]
[White "FMOlexandrProhorov"]
[Black "AdamOwls"]
[Result "0-1"]
[WhiteElo "2171"]
[BlackElo "1948"]
[TimeControl "300"]
[EndTime "12:20:29 PDT"]
[Termination "AdamOwls won by resignation"]

1. e4 {[%clk 0:04:58.3]} 1... c6 {[%clk 0:04:58]} 2. d4 {[%clk 0:04:57.1]} 2...
d5 {[%clk 0:04:57.9]} 3. e5 {[%clk 0:04:56.7]} 3... Bf5 {[%clk 0:04:56.2]} 4.
Nf3 {[%clk 0:04:56.1]} 4... e6 {[%clk 0:04:54.9]} 5. Be2 {[%clk 0:04:55.6]} 5...
c5 {[%clk 0:04:52.6]} 6. Nc3 {[%clk 0:04:53.1]} 6... Nc6 {[%clk 0:04:49.9]} 7.
Be3 {[%clk 0:04:50.6]} 7... cxd4 {[%clk 0:04:46.7]} 8. Bxd4 {[%clk 0:04:49.5]}
8... Nxd4 {[%clk 0:04:44.1]} 9. Qxd4 {[%clk 0:04:49.4]} 9... Ne7 {[%clk
0:04:40.4]} 10. O-O {[%clk 0:04:49]} 10... Nc6 {[%clk 0:04:39.2]} 11. Bb5 {[%clk
0:04:48.7]} 11... Be7 {[%clk 0:04:29.7]} 12. Bxc6+ {[%clk 0:04:44.5]} 12... bxc6
{[%clk 0:04:28.2]} 13. Ne1 {[%clk 0:04:37.8]} 13... O-O {[%clk 0:04:23.5]} 14.
Nd3 {[%clk 0:04:36.5]} 14... Qb6 {[%clk 0:04:17.3]} 15. Qf4 {[%clk 0:04:30.3]}
15... Bxd3 {[%clk 0:04:11.6]} 16. cxd3 {[%clk 0:04:29.6]} 16... Qxb2 {[%clk
0:04:11]} 17. Rac1 {[%clk 0:04:28.4]} 17... c5 {[%clk 0:03:55.1]} 18. Rfe1
{[%clk 0:04:26.5]} 18... Qa3 {[%clk 0:03:49.8]} 19. Qg4 {[%clk 0:04:23.2]} 19...
Rab8 {[%clk 0:03:46.5]} 20. Ne2 {[%clk 0:04:20.5]} 20... Qxa2 {[%clk 0:03:39.7]}
21. Nf4 {[%clk 0:04:19.5]} 21... Qa4 {[%clk 0:03:25.2]} 22. Qg3 {[%clk 0:04:15]}
22... Rb4 {[%clk 0:03:20.3]} 23. Nh5 {[%clk 0:04:09.9]} 23... Rg4 {[%clk
0:03:14.6]} 24. Qf3 {[%clk 0:04:06.5]} 24... Rg6 {[%clk 0:03:04.1]} 25. h3
{[%clk 0:03:59.3]} 25... Rb8 {[%clk 0:02:50.5]} 26. Ra1 {[%clk 0:03:47.3]} 26...
Qd7 {[%clk 0:02:46.2]} 27. Nf4 {[%clk 0:03:41.4]} 27... Rh6 {[%clk 0:02:43.7]}
28. Reb1 {[%clk 0:03:40.1]} 28... Qc8 {[%clk 0:02:34.9]} 29. Qd1 {[%clk
0:03:27]} 29... Bg5 {[%clk 0:02:21]} 30. Ne2 {[%clk 0:03:16.2]} 30... f6 {[%clk
0:02:18.9]} 31. Rxa7 {[%clk 0:03:09.7]} 31... fxe5 {[%clk 0:02:12.2]} 32. Rxb8
{[%clk 0:03:02.4]} 32... Qxb8 {[%clk 0:02:12.1]} 33. Qa1 {[%clk 0:03:01.6]}
33... Qb3 {[%clk 0:01:52.1]} 34. Rd7 {[%clk 0:02:43.5]} 34... Rf6 {[%clk
0:01:45.4]} 35. Ng3 {[%clk 0:02:37.6]} 35... Qc2 {[%clk 0:01:28.3]} 36. Rd8+
{[%clk 0:02:05.6]} 36... Rf8 {[%clk 0:01:26.7]} 37. Rxf8+ {[%clk 0:02:03.5]}
37... Kxf8 {[%clk 0:01:25.8]} 38. Qa8+ {[%clk 0:02:02.8]} 38... Kf7 {[%clk
0:01:24.8]} 39. Qb7+ {[%clk 0:02:01.7]} 39... Be7 {[%clk 0:01:23.5]} 40. Nh5
{[%clk 0:01:52.6]} 40... Qd1+ {[%clk 0:01:18.3]} 41. Kh2 {[%clk 0:01:50.5]}
41... Qxh5 {[%clk 0:01:17.7]} 0-1

[Event "Live Chess"]
[Site "Chess.com"]
[Date "2023.05.20"]
[Round "-"]
[White "CheckThis4"]
[Black "hturner40"]
[Result "1-0"]
[WhiteElo "2554"]
[BlackElo "1799"]
[TimeControl "300"]
[EndTime "12:20:32 PDT"]
[Termination "CheckThis4 won on time"]

1. d4 {[%clk 0:04:56.6]} 1... Nf6 {[%clk 0:04:53.3]} 2. Nc3 {[%clk 0:04:55.1]}
2... d5 {[%clk 0:04:51.1]} 3. Bf4 {[%clk 0:04:50.8]} 3... a6 {[%clk 0:04:47.1]}
4. f3 {[%clk 0:04:41.7]} 4... c5 {[%clk 0:04:44]} 5. e3 {[%clk 0:04:29.2]} 5...
cxd4 {[%clk 0:04:39.2]} 6. exd4 {[%clk 0:04:27.9]} 6... Nc6 {[%clk 0:04:38.1]}
7. Qd2 {[%clk 0:04:24.4]} 7... e6 {[%clk 0:04:21.6]} 8. g4 {[%clk 0:04:18.8]}
8... Qb6 {[%clk 0:04:08.5]} 9. Nge2 {[%clk 0:04:13.5]} 9... Bb4 {[%clk
0:03:56.2]} 10. Bg2 {[%clk 0:04:09.8]} 10... Na5 {[%clk 0:03:46.2]} 11. b3
{[%clk 0:04:05.4]} 11... Bd7 {[%clk 0:03:31.6]} 12. a3 {[%clk 0:04:01.7]} 12...
Bd6 {[%clk 0:03:25.6]} 13. O-O {[%clk 0:03:57.4]} 13... Bxf4 {[%clk 0:02:35.7]}
14. Nxf4 {[%clk 0:03:55.7]} 14... Nc6 {[%clk 0:02:34.1]} 15. Rad1 {[%clk
0:03:46.9]} 15... O-O {[%clk 0:01:56.3]} 16. g5 {[%clk 0:03:45.6]} 16... Ne8
{[%clk 0:01:44.5]} 17. Na4 {[%clk 0:03:44.1]} 17... Qc7 {[%clk 0:01:30.8]} 18.
Nh5 {[%clk 0:03:42.5]} 18... f6 {[%clk 0:01:11.3]} 19. Nc5 {[%clk 0:03:38.4]}
19... b6 {[%clk 0:01:04.5]} 20. Nxd7 {[%clk 0:03:34.5]} 20... Qxd7 {[%clk
0:01:02.8]} 21. f4 {[%clk 0:03:32.2]} 21... Qf7 {[%clk 0:00:24.9]} 22. Ng3
{[%clk 0:03:27.1]} 22... Qg6 {[%clk 0:00:21.9]} 23. Rde1 {[%clk 0:03:21.1]}
23... Nc7 {[%clk 0:00:09.2]} 24. c3 {[%clk 0:03:06.4]} 24... e5 {[%clk
0:00:03.6]} 25. h4 {[%clk 0:03:01]} 1-0

[Event "Live Chess"]
[Site "Chess.com"]
[Date "2023.05.20"]
[Round "-"]
[White "gmnorfolk"]
[Black "JackRudd"]
[Result "1-0"]
[WhiteElo "2054"]
[BlackElo "2452"]
[TimeControl "300"]
[EndTime "12:20:33 PDT"]
[Termination "gmnorfolk won by checkmate"]

1. d4 {[%clk 0:04:58]} 1... Nf6 {[%clk 0:04:58.6]} 2. c4 {[%clk 0:04:56.9]} 2...
e6 {[%clk 0:04:57.4]} 3. Nc3 {[%clk 0:04:55]} 3... c5 {[%clk 0:04:56]} 4. Nf3
{[%clk 0:04:53]} 4... cxd4 {[%clk 0:04:54.8]} 5. Nxd4 {[%clk 0:04:51.5]} 5...
Nc6 {[%clk 0:04:54]} 6. g3 {[%clk 0:04:50.3]} 6... Qb6 {[%clk 0:04:51.9]} 7.
Ndb5 {[%clk 0:04:46]} 7... a6 {[%clk 0:04:47.5]} 8. Be3 {[%clk 0:04:40.9]} 8...
Qa5 {[%clk 0:04:43.4]} 9. Nd6+ {[%clk 0:04:37.1]} 9... Bxd6 {[%clk 0:04:41.9]}
10. Qxd6 {[%clk 0:04:36.1]} 10... b5 {[%clk 0:04:39.6]} 11. cxb5 {[%clk
0:04:15.3]} 11... axb5 {[%clk 0:04:33.7]} 12. Bg2 {[%clk 0:03:54.6]} 12... b4
{[%clk 0:04:32.2]} 13. Ne4 {[%clk 0:03:35.3]} 13... b3+ {[%clk 0:04:27.7]} 14.
Bd2 {[%clk 0:03:28.7]} 14... Qxa2 {[%clk 0:04:24]} 15. Rxa2 {[%clk 0:03:23.3]}
15... bxa2 {[%clk 0:04:23.1]} 16. Nxf6+ {[%clk 0:03:18]} 16... gxf6 {[%clk
0:04:21.7]} 17. O-O {[%clk 0:03:13.4]} 17... a1=Q {[%clk 0:04:20.2]} 18. Rxa1
{[%clk 0:03:10.2]} 18... Rxa1+ {[%clk 0:04:18.9]} 19. Bf1 {[%clk 0:03:08.4]}
19... Rd1 {[%clk 0:04:17.8]} 20. Qc7 {[%clk 0:03:03.7]} 20... Ba6 {[%clk
0:04:12.8]} 21. Bh6 {[%clk 0:02:51.9]} 21... Bxe2 {[%clk 0:04:10.2]} 22. Qc8+
{[%clk 0:02:43.5]} 22... Ke7 {[%clk 0:04:08.6]} 23. Qxh8 {[%clk 0:02:39.7]}
23... Bxf1 {[%clk 0:04:05.5]} 24. Qf8# {[%clk 0:02:33.5]} 1-0

[Event "Live Chess"]
[Site "Chess.com"]
[Date "2023.05.20"]
[Round "-"]
[White "BritishIsles"]
[Black "Leonid_Starozhilov"]
[Result "1/2-1/2"]
[WhiteElo "2426"]
[BlackElo "2648"]
[TimeControl "300"]
[EndTime "12:20:38 PDT"]
[Termination "Game drawn by agreement"]

1. d4 {[%clk 0:04:52.3]} 1... Nf6 {[%clk 0:04:58.3]} 2. Bg5 {[%clk 0:04:50.1]}
2... d5 {[%clk 0:04:56.7]} 3. Nd2 {[%clk 0:04:46.8]} 3... Bf5 {[%clk 0:04:54.2]}
4. e3 {[%clk 0:04:44.1]} 4... e6 {[%clk 0:04:53.1]} 5. Bd3 {[%clk 0:04:41.7]}
5... Bxd3 {[%clk 0:04:51.4]} 6. cxd3 {[%clk 0:04:41.6]} 6... Nbd7 {[%clk
0:04:50.6]} 7. Ngf3 {[%clk 0:04:40.4]} 7... Be7 {[%clk 0:04:48.8]} 8. O-O {[%clk
0:04:39.2]} 8... O-O {[%clk 0:04:48.4]} 9. Rc1 {[%clk 0:04:34.9]} 9... c6 {[%clk
0:04:44.5]} 10. Ne5 {[%clk 0:04:31]} 10... h6 {[%clk 0:04:40.5]} 11. Nxd7 {[%clk
0:04:27.1]} 11... Qxd7 {[%clk 0:04:36.6]} 12. Bxf6 {[%clk 0:04:25.8]} 12... Bxf6
{[%clk 0:04:35.8]} 13. f4 {[%clk 0:04:23.6]} 13... Rac8 {[%clk 0:04:33.6]} 14.
Nf3 {[%clk 0:04:22]} 14... b6 {[%clk 0:04:31.6]} 15. Qa4 {[%clk 0:04:19.4]}
15... Qb7 {[%clk 0:04:29.9]} 16. Ne5 {[%clk 0:04:14.1]} 16... Bxe5 {[%clk
0:04:17.7]} 17. fxe5 {[%clk 0:04:11.2]} 17... c5 {[%clk 0:04:16.1]} 18. Qb5
{[%clk 0:03:59.1]} 18... cxd4 {[%clk 0:03:57.8]} 19. exd4 {[%clk 0:03:57.2]}
19... Rxc1 {[%clk 0:03:56.9]} 20. Rxc1 {[%clk 0:03:55.7]} 20... Rc8 {[%clk
0:03:55.4]} 21. Rc3 {[%clk 0:03:41.3]} 21... a6 {[%clk 0:03:50.6]} 22. Qb3
{[%clk 0:03:39.6]} 22... Rxc3 {[%clk 0:03:42.1]} 23. bxc3 {[%clk 0:03:38.1]}
23... b5 {[%clk 0:03:36]} 24. h3 {[%clk 0:03:36]} 24... a5 {[%clk 0:03:31]} 25.
Kf2 {[%clk 0:03:25.3]} 25... Qb6 {[%clk 0:03:28]} 26. Kf3 {[%clk 0:03:22.9]}
26... f6 {[%clk 0:03:15.7]} 27. exf6 {[%clk 0:03:21.4]} 27... gxf6 {[%clk
0:03:15.6]} 28. Ke3 {[%clk 0:03:08.1]} 28... Kg7 {[%clk 0:03:10.7]} 29. Qd1
{[%clk 0:03:06.8]} 29... b4 {[%clk 0:02:58.7]} 30. Qg4+ {[%clk 0:03:03.5]} 30...
Kf7 {[%clk 0:02:52.3]} 31. Qh5+ {[%clk 0:03:01.2]} 31... Ke7 {[%clk 0:02:51]}
32. cxb4 {[%clk 0:02:48.5]} 32... Qxb4 {[%clk 0:02:48.6]} 33. Qxh6 {[%clk
0:02:41.7]} 33... Qe1+ {[%clk 0:02:44.8]} 34. Kf3 {[%clk 0:02:40]} 34... Qd1+
{[%clk 0:02:41.6]} 35. Kf2 {[%clk 0:02:35]} 35... Qc2+ {[%clk 0:02:27.5]} 36.
Kg1 {[%clk 0:02:30.6]} 36... Qxa2 {[%clk 0:01:59.9]} 37. Qg7+ {[%clk 0:02:29]}
37... Kd6 {[%clk 0:01:57.1]} 38. Qxf6 {[%clk 0:02:28.1]} 38... Qb1+ {[%clk
0:01:39.8]} 39. Kh2 {[%clk 0:02:25.6]} 39... Qxd3 {[%clk 0:01:33]} 40. Qd8+
{[%clk 0:02:24]} 40... Kc6 {[%clk 0:01:32.1]} 41. Qxa5 {[%clk 0:02:21.2]} 41...
Qxd4 {[%clk 0:01:29.4]} 42. Qa6+ {[%clk 0:02:19.6]} 42... Kd7 {[%clk 0:01:28.3]}
43. Qb7+ {[%clk 0:02:15.6]} 43... Ke8 {[%clk 0:01:25.5]} 44. Qc8+ {[%clk
0:02:11.4]} 44... Ke7 {[%clk 0:01:22]} 1/2-1/2

[Event "Live Chess"]
[Site "Chess.com"]
[Date "2023.05.20"]
[Round "-"]
[White "EdenHazard8"]
[Black "Bob2pen"]
[Result "1-0"]
[WhiteElo "2099"]
[BlackElo "1784"]
[TimeControl "300"]
[EndTime "12:20:40 PDT"]
[Termination "EdenHazard8 won by resignation"]

1. e4 {[%clk 0:04:56.6]} 1... e6 {[%clk 0:04:58.8]} 2. d4 {[%clk 0:04:54.7]}
2... d5 {[%clk 0:04:57.8]} 3. Nd2 {[%clk 0:04:52.5]} 3... Nf6 {[%clk 0:04:56.7]}
4. e5 {[%clk 0:04:51.3]} 4... Nfd7 {[%clk 0:04:55.3]} 5. Ngf3 {[%clk 0:04:50.1]}
5... c5 {[%clk 0:04:53.5]} 6. c3 {[%clk 0:04:49.1]} 6... Nc6 {[%clk 0:04:52.4]}
7. Be2 {[%clk 0:04:47.7]} 7... f6 {[%clk 0:04:51.3]} 8. exf6 {[%clk 0:04:30]}
8... Nxf6 {[%clk 0:04:46.2]} 9. Nf1 {[%clk 0:04:26.6]} 9... cxd4 {[%clk
0:04:43.9]} 10. Nxd4 {[%clk 0:04:24.3]} 10... Nxd4 {[%clk 0:04:42.7]} 11. Qxd4
{[%clk 0:04:22.8]} 11... Qc7 {[%clk 0:04:33.8]} 12. Bf4 {[%clk 0:04:16.4]} 12...
Bd6 {[%clk 0:04:32.3]} 13. Bxd6 {[%clk 0:04:00.1]} 13... Qxd6 {[%clk 0:04:30.9]}
14. O-O-O {[%clk 0:03:55.5]} 14... O-O {[%clk 0:04:25.2]} 15. Ne3 {[%clk
0:03:51.8]} 15... Qe7 {[%clk 0:04:02.2]} 16. Bf3 {[%clk 0:03:39.1]} 16... Bd7
{[%clk 0:03:59.2]} 17. Rhe1 {[%clk 0:03:33.6]} 17... b6 {[%clk 0:03:48.8]} 18.
Nxd5 {[%clk 0:03:29.7]} 18... Nxd5 {[%clk 0:03:43.1]} 19. Bxd5 {[%clk 0:03:28]}
19... Qc5 {[%clk 0:03:34.9]} 20. Qxc5 {[%clk 0:03:22.4]} 20... bxc5 {[%clk
0:03:32.1]} 21. Bxa8 {[%clk 0:03:20.3]} 1-0

[Event "Live Chess"]
[Site "Chess.com"]
[Date "2023.05.20"]
[Round "-"]
[White "WilliamofOrange16th"]
[Black "LiamClery2020"]
[Result "1/2-1/2"]
[WhiteElo "1869"]
[BlackElo "2079"]
[TimeControl "300"]
[EndTime "12:20:52 PDT"]
[Termination "Game drawn by repetition"]

1. b3 {[%clk 0:04:56.6]} 1... Nf6 {[%clk 0:04:59.4]} 2. Bb2 {[%clk 0:04:55.7]}
2... Nc6 {[%clk 0:04:59.3]} 3. e3 {[%clk 0:04:54.4]} 3... e5 {[%clk 0:04:58.4]}
4. Nf3 {[%clk 0:04:52.9]} 4... d6 {[%clk 0:04:57.8]} 5. d4 {[%clk 0:04:52]} 5...
e4 {[%clk 0:04:56.8]} 6. Nfd2 {[%clk 0:04:50.7]} 6... d5 {[%clk 0:04:56.1]} 7.
c4 {[%clk 0:04:50.2]} 7... Bg4 {[%clk 0:04:54.4]} 8. Be2 {[%clk 0:04:40.5]} 8...
Bxe2 {[%clk 0:04:53.3]} 9. Qxe2 {[%clk 0:04:40.4]} 9... Nb4 {[%clk 0:04:51.2]}
10. Kd1 {[%clk 0:04:18.9]} 10... Nd3 {[%clk 0:04:49]} 11. Bc3 {[%clk 0:04:16.6]}
11... Ng4 {[%clk 0:04:45.8]} 12. Rf1 {[%clk 0:04:08.7]} 12... Nf6 {[%clk
0:04:41.7]} 13. f3 {[%clk 0:04:06.1]} 13... c6 {[%clk 0:04:39.4]} 14. fxe4
{[%clk 0:04:03.9]} 14... dxe4 {[%clk 0:04:39.3]} 15. Nxe4 {[%clk 0:03:55.6]}
15... Nxe4 {[%clk 0:04:37.6]} 16. Qxd3 {[%clk 0:03:54.8]} 16... Nxc3+ {[%clk
0:04:36]} 17. Nxc3 {[%clk 0:03:52.6]} 17... Be7 {[%clk 0:04:33.9]} 18. Kc2
{[%clk 0:03:50.6]} 18... Bf6 {[%clk 0:04:32.9]} 19. Rad1 {[%clk 0:03:47.8]}
19... O-O {[%clk 0:04:32]} 20. Ne4 {[%clk 0:03:46.8]} 20... Be7 {[%clk
0:04:30.2]} 21. g4 {[%clk 0:03:41.3]} 21... Qa5 {[%clk 0:04:29.3]} 22. Kb1
{[%clk 0:03:30.8]} 22... b5 {[%clk 0:04:22]} 23. c5 {[%clk 0:03:26.7]} 23...
Rad8 {[%clk 0:04:20.3]} 24. Qc2 {[%clk 0:03:14.6]} 24... Rd5 {[%clk 0:04:12.9]}
25. Nc3 {[%clk 0:03:08.7]} 25... Rd7 {[%clk 0:04:10.7]} 26. Kb2 {[%clk
0:02:35.8]} 26... Rfd8 {[%clk 0:04:05.1]} 27. a3 {[%clk 0:02:34.3]} 27... b4
{[%clk 0:04:00.8]} 28. axb4 {[%clk 0:02:33.1]} 28... Qxb4 {[%clk 0:04:00.7]} 29.
Na2 {[%clk 0:02:22.3]} 29... Qb5 {[%clk 0:03:56.7]} 30. Nc3 {[%clk 0:02:19.2]}
30... Qb4 {[%clk 0:03:55.6]} 31. Na2 {[%clk 0:02:14.2]} 31... Qb5 {[%clk
0:03:54.3]} 32. Nc3 {[%clk 0:02:13.2]} 32... Qb4 {[%clk 0:03:53.4]} 1/2-1/2

[Event "Live Chess"]
[Site "Chess.com"]
[Date "2023.05.20"]
[Round "-"]
[White "DerbyKnight"]
[Black "thrithik"]
[Result "1-0"]
[WhiteElo "1632"]
[BlackElo "385"]
[TimeControl "300"]
[EndTime "12:20:57 PDT"]
[Termination "DerbyKnight won by checkmate"]

1. e4 {[%clk 0:04:59.1]} 1... b6 {[%clk 0:04:59]} 2. d4 {[%clk 0:04:57.4]} 2...
c6 {[%clk 0:04:58.7]} 3. Nc3 {[%clk 0:04:55.4]} 3... Na6 {[%clk 0:04:58.4]} 4.
a3 {[%clk 0:04:50]} 4... Nf6 {[%clk 0:04:58]} 5. Bd3 {[%clk 0:04:46.4]} 5...
Nxe4 {[%clk 0:04:57.5]} 6. Bxe4 {[%clk 0:04:44.9]} 6... Bb7 {[%clk 0:04:47.8]}
7. Nf3 {[%clk 0:04:43.9]} 7... c5 {[%clk 0:04:46.4]} 8. Bxb7 {[%clk 0:04:38.4]}
8... cxd4 {[%clk 0:04:43.8]} 9. Nxd4 {[%clk 0:04:34]} 9... Rb8 {[%clk
0:04:43.2]} 10. Bxa6 {[%clk 0:04:32.5]} 10... Rc8 {[%clk 0:04:33.7]} 11. Bxc8
{[%clk 0:04:30.2]} 11... Qxc8 {[%clk 0:04:31.3]} 12. O-O {[%clk 0:04:29.6]}
12... h5 {[%clk 0:04:19.6]} 13. Bf4 {[%clk 0:04:16.7]} 13... h4 {[%clk
0:04:17.6]} 14. h3 {[%clk 0:04:14.7]} 14... f6 {[%clk 0:04:12.1]} 15. Re1 {[%clk
0:04:11.5]} 15... g5 {[%clk 0:04:11.8]} 16. Bd6 {[%clk 0:04:04.8]} 16... e6
{[%clk 0:03:50.8]} 17. Bxf8 {[%clk 0:03:56]} 17... Rxf8 {[%clk 0:03:47.5]} 18.
Qd3 {[%clk 0:03:47.8]} 18... f5 {[%clk 0:03:46.9]} 19. Qb5 {[%clk 0:03:41.1]}
19... g4 {[%clk 0:03:46.4]} 20. Nxe6 {[%clk 0:03:32.5]} 20... gxh3 {[%clk
0:03:43.3]} 21. Nxf8+ {[%clk 0:03:28.6]} 21... Kxf8 {[%clk 0:03:39.5]} 22. Qxf5+
{[%clk 0:03:26.8]} 22... Kg7 {[%clk 0:03:36.7]} 23. Re7+ {[%clk 0:03:24.5]}
23... Kh8 {[%clk 0:03:33.8]} 24. Qh5+ {[%clk 0:03:20.1]} 24... Kg8 {[%clk
0:03:31]} 25. Qg6+ {[%clk 0:03:18.9]} 25... Kf8 {[%clk 0:03:28.2]} 26. Qf7#
{[%clk 0:03:17.6]} 1-0